Cogmind - Beta 16 @@@ ROGUE MODE // 2025.11.28 @ 02:12:58 Player: Ayera Result: Destroyed by G-50 Soldier with Heavy Laser Performance ------------- Evolutions (1) 500 Regions Visited (5) 1000 Robots Destroyed (60) 300 Value Destroyed (1247) 1247 Prototype IDs (1) 20 Alien Tech Used (0) 0 Bonus (0) 0 TOTAL SCORE: 3067 Bonus ------- None Cogmind --------- Core Integrity 0/400 Matter 266/300 Energy 98/100 System Corruption 0% Temperature Cool (10) Movement Walking (120) Location -8/Mines Parts ------- > --- POWER (1) -------- (None) > --- PROPULSION (2) --- Carbon-fiber Leg > --- UTILITY (4) ------ Small Storage Unit Targeting Computer Medium Armor Plating > --- WEAPON (2) ------- Heavy Assault Rifle > --- INVENTORY (8) ---- Hover Unit Weight Redist. System Peak State ------------ > --- POWER ------------ Light Nuclear Core > --- PROPULSION ------- Carbon-fiber Leg Carbon-fiber Leg > --- UTILITY ---------- Small Storage Unit Improved Sensor Array Targeting Computer Shield Generator > --- WEAPON ----------- Beam Rifle Heavy Assault Rifle > --- INVENTORY -------- Carbon-fiber Leg Carbon-fiber Leg Hover Unit Weight Redist. System Improved Sensor Array EM Pulse Gun [Rating: 21] Favorites ----------- Power Light Ion Engine Engine Light Ion Engine Power Core Light Nuclear Core Propulsion Aluminum Leg Leg Aluminum Leg Flight Unit Improved Flight Unit Utility Small Storage Unit Device Improved Sensor Array Storage Small Storage Unit Processor Targeting Computer Protection Hardened Light Armor Plating Weapon Beam Rifle Energy Gun Beam Rifle Ballistic Gun Heavy Assault Rifle Build | -11 -10 -9 -9 -9 -8 ------- Run | Yrd Mat Mat Min Exi Min Slots Evolved 2 | . . 2 . . . Power . | . . . . . . Propulsion . | . . . . . . Utility 2 | . . 2 . . . Weapon . | . . . . . . Parts Attached 37 | 6 6 23 1 . 1 Power 7 | 1 1 4 1 . . Engine 3 | 1 1 . 1 . . Core 4 | . . 4 . . . Reactor . | . . . . . . Propulsion 10 | 2 1 7 . . . Treads . | . . . . . . Leg 9 | 2 1 6 . . . Wheel . | . . . . . . Hover . | . . . . . . Flight 1 | . . 1 . . . Utility 13 | 1 3 8 . . 1 Device 4 | . 1 3 . . . Storage 2 | 1 . 1 . . . Processor 3 | . 2 1 . . . Hackware . | . . . . . . Protection 4 | . . 3 . . 1 Artifact . | . . . . . . Weapon 7 | 2 1 4 . . . Energy Gun 5 | 2 1 2 . . . Energy Cannon . | . . . . . . Ballistic Gun 2 | . . 2 . . . Ballistic Cannon . | . . . . . . Launcher . | . . . . . . Special Weapon . | . . . . . . Impact Weapon . | . . . . . . Slashing Weapon . | . . . . . . Piercing Weapon . | . . . . . . Special Melee Weapon . | . . . . . . Unidentified Prototypes 1 | . . 1 . . . Parts Lost 15 | . . 7 1 . 7 Power 3 | . . 1 1 . 1 Propulsion 3 | . . 1 . . 2 Utility 5 | . . 3 . . 2 Weapon 4 | . . 2 . . 2 Highest Loss Streak 5 | . . 2 1 . 5 To Critical Strikes . | . . . . . . Average Backups 4 | . 3 5 6 5 4 Power . | . . . . . . Propulsion 1 | . . 1 2 2 1 Utility 1 | . 1 2 3 2 1 Weapon 1 | . 1 1 1 1 . Tool/Special . | . . . . . . Unused Backups 3 | . . . . 1 2 Power . | . . . . . . Propulsion 1 | . . . . . 1 Utility 2 | . . . . 1 1 Weapon . | . . . . . . Tool/Special . | . . . . . . Average Slot Usage (%) 95 | . 98 93 99 100 90 Engine 6 | . 14 . 6 11 9 Core 4 | . . 9 3 . . Leg 23 | . 28 21 22 22 19 Device 9 | . 7 11 11 11 8 Storage 11 | . 14 11 11 11 11 Processor 9 | . 4 11 11 11 11 Protection 5 | . . 6 11 11 10 Energy Gun 18 | . 28 16 11 11 9 Ballistic Gun 5 | . . 5 11 11 11 Peak Build Rating 21 | 6 9 21 21 19 18 Average Rating 14 | 3 8 16 19 18 15 On Entrance 12 | . 6 8 21 19 18 Avg Prop Armor Cover (%) 6 | . . 6 . . . Naked Turns . | . . . . . . Heaviest Build 22 | 12 14 22 22 20 20 Greatest Support 30 | 20 20 30 30 30 30 Greatest Overweight (x) 4 | . . 4 . . 1 Average Overweight (x) . | . . . . . . Largest Inventory Capacity 8 | 8 8 8 8 8 8 Average Capacity 7 | 6 8 8 8 8 8 Most Carried 8 | 2 6 8 7 8 5 Average Carried 4 | . 3 5 6 5 4 Final Capacity 8 | 8 8 8 8 8 8 Final Carried 6 | . 6 6 6 5 2 Class Distribution -------------------- 100% | Mutant Dominant Class ---------------- Mutant | -10/Materials Mutant | -9/Materials Mutant | -9/Mines Mutant | -9/Exiles Mutant | -8/Mines Resources | -11 -10 -9 -9 -9 -8 ----------- Run | Yrd Mat Mat Min Exi Min Matter Collected 932 | 253 86 470 80 . 43 Remotely . | . . . . . . Salvage Created 1610 | . 326 1128 42 . 114 Parts 114 | . 31 75 5 . 3 Haulers Intercepted 1 | . . 1 . . . Recyclers Shooed 1 | . 1 . . . . Parts Field Recycled . | . . . . . . Retrieved Matter . | . . . . . . Parts Self-Destructed . | . . . . . . Prevented . | . . . . . . Parts Restored . | . . . . . . Kills | -11 -10 -9 -9 -9 -8 ------- Run | Yrd Mat Mat Min Exi Min Combat Hostiles Destroyed 51 | . 15 31 3 . 2 Guns 49 | . 14 30 3 . 2 Classes Destroyed 8 | . 3 4 . . 1 Builder 3 | . . 3 . . . Hauler 1 | . . 1 . . . Watcher 5 | . 2 3 . . . Swarmer 29 | . 12 14 3 . . Grunt 14 | . 3 10 . . 1 Brawler 1 | . . 1 . . . Sentry 6 | . . 6 . . . Hunter 1 | . . . . . 1 Best Kill Streak 7 | . 7 7 3 . 1 Combat Bots Only 6 | . 6 4 3 . 1 Max Kills in Single Turn 2 | . 2 1 2 . 1 Gunslinging 1 | . 1 . 1 . . Exploded . | . . . . . . Melee . | . . . . . . Uniques/NPCs Destroyed . | . . . . . . Combat | -11 -10 -9 -9 -9 -8 -------- Run | Yrd Mat Mat Min Exi Min Hostile Shots Fired 292 | . 50 189 13 . 40 Missed 81 | . 17 55 1 . 8 Hits 211 | . 33 134 12 . 32 Projectile 211 | . 33 134 12 . 32 Critical Strikes 4 | . 1 2 . . 1 Damage Taken 2413 | . 297 1517 90 . 509 Core 493 | . 77 303 . . 113 Absorbed by Shields 33 | . . 33 . . . Core Remaining (%) 84 | 100 69 . . . . Volleys Fired 181 | . 39 113 5 . 24 Largest 2 | . 2 2 2 . 2 Hottest 106 | . 106 106 79 . 79 Shots Fired 328 | . 74 203 10 . 41 Gun 328 | . 74 203 10 . 41 Cannon . | . . . . . . Launcher . | . . . . . . Special . | . . . . . . Kinetic 82 | . . 53 5 . 24 Thermal 234 | . 74 150 5 . 5 Explosive . | . . . . . . Electromagnetic 12 | . . . . . 12 Robot Hit Streak 9 | . 4 9 3 . 5 Robot Miss Streak 4 | . 4 4 4 . 3 Penetration Max . | . . . . . . Secondary Targets 7 | . 3 3 1 . . Max Gunslinging Chain 1 | . 1 1 1 . . Shots Hit Robots 187 | . 34 125 4 . 24 Core Hits 81 | . 17 52 3 . 9 Critical Kills . | . . . . . . Critical Parts Destroyed . | . . . . . . Critical Strikes 18 | . 5 10 2 . 1 Burn 17 | . 5 9 2 . 1 Destroy 1 | . . 1 . . . Melee Attacks . | . . . . . . Impact . | . . . . . . Slashing . | . . . . . . Piercing . | . . . . . . Sneak Attacks . | . . . . . . Combat Hostiles . | . . . . . . Follow-up Attacks . | . . . . . . Damage Inflicted 2702 | . 502 1797 67 . 336 Guns 2697 | . 502 1796 63 . 336 Cannons . | . . . . . . Explosions . | . . . . . . Melee . | . . . . . . Ramming 5 | . . 1 4 . . Kinetic 715 | . . 524 18 . 173 Thermal 1878 | . 502 1272 45 . 59 Explosive . | . . . . . . Electromagnetic 104 | . . . . . 104 Impact . | . . . . . . Slashing . | . . . . . . Piercing . | . . . . . . Highest Corruption 4 | . 4 . . . . Average Corruption 3 | . 3 . . . . Corruption Purged . | . . . . . . Corruption Blocked . | . . . . . . Effects 6 | . 6 . . . . Message Errors 2 | . 2 . . . . Matter Fused 2 | . 2 . . . . Energy Discharges 2 | . 2 . . . . Overload Shots . | . . . . . . Overflow Damage . | . . . . . . Projectiles . | . . . . . . Explosions . | . . . . . . Melee . | . . . . . . Knockbacks . | . . . . . . Impact . | . . . . . . Kinetic . | . . . . . . Secondary . | . . . . . . Self-Inflicted Damage . | . . . . . . Shots . | . . . . . . Rammed . | . . . . . . Targets Rammed 2 | . . 1 1 . . Kicked 2 | . . 1 1 . . Crushed . | . . . . . . Highest Temperature 494 | . 288 494 80 . 180 Average Temperature 121 | . 95 143 51 . 74 Received Heat Transfer 636 | . 36 447 . . 153 Effects 13 | . . 13 . . . Shutdowns 4 | . . 4 . . . Energy Bleed 3 | . . 3 . . . Interference 4 | . . 4 . . . Matter Decay 2 | . . 2 . . . Siege Activations . | . . . . . . Martial Activations . | . . . . . . Shielding Activations . | . . . . . . Robots Disrupted . | . . . . . . Combat Hostiles . | . . . . . . Robots Corrupted . | . . . . . . Combat Hostiles . | . . . . . . Parts Fried . | . . . . . . Impact Corruptions . | . . . . . . Robots Melted 2 | . 1 1 . . . Combat Hostiles 2 | . 1 1 . . . Parts Melted 15 | . 2 13 . . . Heat Transferred 6364 | . 1739 4144 259 . 222 Parts Sabotaged . | . . . . . . Parts Stolen . | . . . . . . Parts Stripped . | . . . . . . Power Chain Reactions . | . . . . . . Alert | -11 -10 -9 -9 -9 -8 ------- Run | Yrd Mat Mat Min Exi Min Maximum Alert Level 1 | . . 1 . . . Low Security (%) 77 | 100 100 57 100 . 100 Level 1 22 | . . 42 . . . Level 2 . | . . . . . . Level 3 . | . . . . . . Level 4 . | . . . . . . Level 5 . | . . . . . . High Security . | . . . . . . Max Security . | . . . . . . Peak Influence 281 | . 132 281 142 . 30 Initial 92 | . . 18 92 . . Average 100 | . 57 142 110 . 6 Influence Increases 1393 | . 420 823 70 . 80 Destroy 0b10 Robot/C 1020 | . 300 620 60 . 40 Destroy 0b10 Robot/NC 45 | . 10 35 . . . Destroy Leader 232 | . 64 148 10 . 10 Disable Machine 15 | . . 15 . . . Destroy Structure 6 | . 1 5 . . . Lose Combat Pursuer 75 | . 45 . . . 30 Influence Decreases 1373 | . 374 631 216 92 60 Entered New Map 266 | . . 28 146 92 . Time Decay 1006 | . 374 542 60 . 30 Lost Part 101 | . . 61 10 . 30 Squads Dispatched 6 | . 2 4 . . . Investigation 3 | . 1 2 . . . Extermination . | . . . . . . Reinforcement 3 | . 1 2 . . . Assault . | . . . . . . Garrison . | . . . . . . Intercept . | . . . . . . Searches Triggered . | . . . . . . Construction Impeded . | . . . . . . Haulers Reinforced . | . . . . . . Active Scanning Responses . | . . . . . . Cargo Convoy Interrupts . | . . . . . . Stealth | -11 -10 -9 -9 -9 -8 --------- Run | Yrd Mat Mat Min Exi Min Distress Signals 3 | . 1 2 . . . Communications Jammed . | . . . . . . Distress Signals . | . . . . . . Times Spotted 77 | . 25 43 3 . 6 Peak Tracking Total 6 | . 5 6 3 . 3 Tactical Retreats 2 | . 1 . . . 1 Traps | -11 -10 -9 -9 -9 -8 ------- Run | Yrd Mat Mat Min Exi Min Traps Triggered 8 | . 3 5 . . . Indirectly . | . . . . . . Trap Hack Attempts . | . . . . . . Triggered . | . . . . . . Disarmed . | . . . . . . Reprogrammed . | . . . . . . Reused . | . . . . . . Traps Extracted . | . . . . . . Installed . | . . . . . . Triggered . | . . . . . . Machines | -11 -10 -9 -9 -9 -8 ---------- Run | Yrd Mat Mat Min Exi Min Machines Disabled 1 | . . 1 . . . Max in Single Turn 1 | . . 1 . . . Machines Repaired . | . . . . . . Machines Dismantled . | . . . . . . Machines Sabotaged . | . . . . . . Overloaded Fab Kills . | . . . . . . Hacking | -11 -10 -9 -9 -9 -8 --------- Run | Yrd Mat Mat Min Exi Min Machines Accessed 4 | . . . . 4 . Terminals . | . . . . . . Fabricators . | . . . . . . Repair Stations . | . . . . . . Recycling Units . | . . . . . . Scanalyzers . | . . . . . . Garrison Access . | . . . . . . Total Hacks 49 | . . . . 49 . Successful 49 | . . . . 49 . Failed . | . . . . . . Catastrophic . | . . . . . . Database Lockouts . | . . . . . . Manual . | . . . . . . Terminals . | . . . . . . Fabricators . | . . . . . . Repair Stations . | . . . . . . Recycling Units . | . . . . . . Scanalyzers . | . . . . . . Garrison Access . | . . . . . . Terminal Hacks 49 | . . . . 49 . Record 49 | . . . . 49 . Fabricator Hacks . | . . . . . . Repair Station Hacks . | . . . . . . Recycling Unit Hacks . | . . . . . . Scanalyzer . | . . . . . . Garrison Access Hacks . | . . . . . . Unauthorized Hacks . | . . . . . . Terminals . | . . . . . . Fabricators . | . . . . . . Repair Stations . | . . . . . . Recycling Units . | . . . . . . Scanalyzers . | . . . . . . Garrison Access . | . . . . . . Data Cores Recovered . | . . . . . . Used . | . . . . . . Hacking Detections . | . . . . . . Full Trace Events . | . . . . . . Feedback Events . | . . . . . . Feedback Blocked . | . . . . . . Robot Schematics Acquired . | . . . . . . Robots Built . | . . . . . . Authchips . | . . . . . . Time . | . . . . . . Total Robot Build Rating . | . . . . . . Part Schematics Acquired . | . . . . . . Parts Built . | . . . . . . Authchips . | . . . . . . Time . | . . . . . . Total Part Build Rating . | . . . . . . Part Studies Acquired . | . . . . . . Parts Repaired . | . . . . . . Time . | . . . . . . Parts Recycled . | . . . . . . Recycled Matter . | . . . . . . Retrieved Matter . | . . . . . . Retrieved Components . | . . . . . . Parts Scanalyzed . | . . . . . . Part Schematics Acquired . | . . . . . . Parts Damaged . | . . . . . . Bothacking | -11 -10 -9 -9 -9 -8 ------------ Run | Yrd Mat Mat Min Exi Min Used RIF Installer . | . . . . . . Robots Hacked . | . . . . . . Non-combat . | . . . . . . Combat . | . . . . . . Robot Hacks Applied . | . . . . . . Relay Couplers Released . | . . . . . . Fabnet Peak Effective % . | . . . . . . Robots Rewired . | . . . . . . Allies Hacked . | . . . . . . Hacks Repelled . | . . . . . . Allies | -11 -10 -9 -9 -9 -8 -------- Run | Yrd Mat Mat Min Exi Min Total Allies . | . . . . . . Largest Group . | . . . . . . Highest-Rated Group . | . . . . . . Highest-Rated Ally . | . . . . . . Total Orders . | . . . . . . Ally Attacks . | . . . . . . Total Damage . | . . . . . . Kills . | . . . . . . Allies Corrupted . | . . . . . . Allies Melted . | . . . . . . Intel | -11 -10 -9 -9 -9 -8 ------- Run | Yrd Mat Mat Min Exi Min Active Infowar (turns) 3037 | . 758 1607 124 373 175 Optics 192 | . 192 . . . . Sensors 2845 | . 566 1607 124 373 175 Robot Analysis Total . | . . . . . . Derelict Logs Recovered . | . . . . . . Drone Launches . | . . . . . . Drone Recoveries . | . . . . . . Exploration | -11 -10 -9 -9 -9 -8 ------------- Run | Yrd Mat Mat Min Exi Min Turns Passed 3392 | 47 1018 1607 124 374 222 Spaces Moved 2263 | 37 738 969 89 309 121 Core 18 | 12 . 6 . . . Treads . | . . . . . . Legs 2245 | 25 738 963 89 309 121 Wheels . | . . . . . . Hover . | . . . . . . Flight . | . . . . . . Fastest Speed 50 | 50 120 120 120 120 120 Average Speed 121 | 97 120 125 120 120 121 Slowest Speed 250 | 120 120 250 120 120 190 Overloaded Moves . | . . . . . . Propulsion Burnouts . | . . . . . . Robots Hopped . | . . . . . . Potential Cave-ins . | . . . . . . Cave-ins Triggered . | . . . . . . Exploration Rate (%) 48 | 4 95 70 19 63 39 Regions Visited 5 Branch Regions 3 Pre-discovered Areas 1 | . . . . 1 . Known Exits Taken . | . . . . . . Unknown Exits Taken 5 | 1 1 1 1 1 . Scrap Searched 1 | . . . 1 . . Spaces Dug . | . . . . . . Terrain Destroyed . | . . . . . . Melee . | . . . . . . Projectile . | . . . . . . AOE . | . . . . . . Terrain Rammed . | . . . . . . Walls Destroyed . | . . . . . . Machines Disabled . | . . . . . . Actions | -11 -10 -9 -9 -9 -8 --------- Run | Yrd Mat Mat Min Exi Min Total 2563 | 48 794 1157 96 313 155 Wait 18 | . 1 9 . 1 7 Move 2258 | 36 737 968 88 308 121 Hop . | . . . . . . Pick Up 41 | 6 10 23 1 1 . Fast Attach 2 | . . 2 . . . Attach 23 | 6 1 11 1 1 3 Detach . | . . . . . . Swap 22 | . 5 17 . . . Drop 16 | . 1 13 . 2 . Fire 181 | . 39 113 5 . 24 Melee . | . . . . . . Ram . | . . . . . . Kick 2 | . . 1 1 . . Crush . | . . . . . . Escape Stasis . | . . . . . . Rewire . | . . . . . . Trap . | . . . . . . Miscellaneous . | . . . . . . Route ------- -11/Scrapyard -10/Materials (discovered 4 exits: *Mat x3 / [*Min]) -9/Materials (discovered 4 exits: [*Mat] / [*Min x2] / [*Sto]) -9/Mines -9/Exiles (discovered 2 exits: [*Min x2]) -8/Mines History --------- Turn | Location | Event 21 | -11/Scrapyard | Discovered new exit (range 16) 48 | -11/Scrapyard | Entered Materials 148 | -10/Materials | Discovered new exit (range 15) 306 | -10/Materials | Discovered new exit (range 7) 311 | -10/Materials | Build established: Mutant 384 | -10/Materials | Discovered new exit (range 9) 442 | -10/Materials | Discovered new exit (range 6) 1066 | -10/Materials | Entered another Materials area 1066 | -9/Materials | Evolved 2 slots: Utility x2 1392 | -9/Materials | Discovered new exit (range 16) 1445 | -9/Materials | Discovered new exit (range 15) 1711 | -9/Materials | Discovered new exit (range 6) 2288 | -9/Materials | Core integrity fell below 50% 2650 | -9/Materials | Discovered new exit (range 15) 2673 | -9/Materials | Entered Mines 2789 | -9/Mines | Deemed a non-threat by the Exiles lab entrance 2790 | -9/Mines | Discovered new exit (range 5) 2797 | -9/Mines | Entered Exiles 2819 | -9/Exiles | Discovered new exit (range 15) 2842 | -9/Exiles | Met 8R-AWN 2859 | -9/Exiles | Met EX-HEX 2896 | -9/Exiles | Met EX-BIN 3064 | -9/Exiles | Met EX-DEC 3073 | -9/Exiles | Learned location of Zion (-7) 3157 | -9/Exiles | Discovered new exit (range 14) 3171 | -9/Exiles | Entered Mines 3284 | -8/Mines | Core integrity fell below 20% 3393 | -8/Mines | Destroyed by G-50 Soldier with Heavy Laser Last Messages --------------- 03276_ Slug penetrates Wall. 03280_ H-55 Commando suffers critical hit (Burn). 03283_ Penetrated by Slug. 03283_ Beam Rifle destroyed. 03286_ Penetrated by Slug. 03289_ Slug penetrates Wall. 03289_ Carbon-fiber Leg destroyed. 03292_ Penetrated by Slug. 03295_ H-55 Commando destroyed. 03296_ K-01 Serf collects debris. 03300_ Acquired 43 matter. 03304_ K-01 Serf collects debris. 03340_ Critical hit (Burn: +37). 03346_ Imp. Sensor Array destroyed. 03350_ Carbon-fiber Leg destroyed. 03351_ G-47 Trooper destroyed. 03362_ Hrd. Light Armor Plating destroyed. 03364_ EM Pulse Gun destroyed. 03366_ Lgt. Ion Engine destroyed. Map ----- +----------------------------------------------------+ | | | ?????????????????????????????????????????????????? | | ?????????????????????????????????????????????????? | | ?????????????????????????????????????????????????? | | ???????????????"?????????????????????????????????? | | ???????????????"?????????????????????????????????? | | ???????????????"?????????????????????????????????? | | ???????????????!?????????????????????????????????? | | ??????????????#%#????????????????????????????????? | | ??????????????#[#????????????????????????????????? | | ??????????????# #????????????????????????????????? | | ??????????????# #????????????????????????????????? | | ??????????????# #????????????????????????????????? | | ??????????????# #????????????????????????????????? | | ??????????????# #????????????????????????????????? | | ??????????????# ############## #?????????????????? | | ??????????????# g #?????????????????? | | ??????????????#########g ######??????????????????? | | ??????????????????????# #???????????????????????? | | ??????????????????????# ##??????????????????????? | | ?????????????????????## #??????????????????????? | | ?????????????????????# #??????????????????????? | | ?#############???????# ##### #???????????????? | | ?# #???????## #???????????????? | | ?# """" """" #????????## ##### #???????????????? | | ?# """" """" #????????## @##### #???????????????? | | ?# """" """" #???????## #???????????????? | | ?# #??????## #???????????????? | | ?# #?????## #######???????????????? | | ?# #????## u ######???????????????? | | ?# #????# #???????????????? | | ?# #????# #??????????????? | | ?# #????## ##### #?????????????? | | ?# #?????### ##????# ???????????? | | ?# #???????# #?????? ???????????? | | ###### ######??????## ##?????? ???????????? | | ##???# #??????????## % ##??????# "????????????? | | #???# #????????### #####???? ?????????????? | | #???# #???????## ##?????????????????? | | #???# #???##### ##????????????????? | | #???# #???# #????????????????? | | ##### #???# ## #????????????????? | | #???## #### #????????????????? | | #????#### ##### ##????????????????? | | ########???????## #####?????????????????? | | ##??????????????## ###??????????????????? | | ???????????????## #??????????????????? | | ???????????##### #?????????????????? | | ############ ### #????????????????? | | ### ##?#### ???????????????? | +----------------------------------------------------+ Best States ------------- Heat Dissipation 28 Energy Generation 14 Energy Capacity 160 Matter Stores 300 Matter Capacity 300 Sight Range 18 Robot Scan Range 15 Terrain Scan Density 10 Armor Coverage 225 Evasion (%) 55 Targeting Accuracy 5 Item Schematics ----------------- None Robot Schematics ------------------ None Fabricated ------------ Nothing Repaired ---------- Nothing Studied --------- None Alien Tech Used ----------------- None Achievements -------------- None Challenges ------------ None Game ------ Seed DynamicRefineryMapper Manual? 0 Play Time 00:31:05 Cumulative 26.6 hours Start 2025.11.28 @ 01:43:20 End 2025.11.28 @ 02:12:58 Sessions 1 Manual Loads 0 Difficulty Rogue Special Mode None Game No. 49 Rogue 49 Adventurer 0 Explorer 0 Win Type - Total 0 Types 0/0/0/0/0/0/0/0/0/0 Lore% 10 Gallery% 24 Achievement% 14 Wizard Run 0 Options --------- Layout 1 ASCII 0 Keyboard 0 Movement Numpad Keybinds 0 Fullscreen 1 Font 32/SmallcapsGlow Map View 50x40 Zoom Use 0% Tactical HUD 1 Map Filters NONE Filters NONE Steam 1 RUN: d4a23644-765f-4baf-bdfd-aefa07337d67